bitfinex-derivatives/quotes_SOLF0:USTF0_20241208
["timestamp","ask_amount","ask_price","bid_price","bid_amount"]
[1733634177355,6.40073707,238.93,238.88,2.0912]
[1733634178149,8.49163707,238.93,238.89,2.0912]
[1733634180553,6.40073707,238.93,238.89,2.0912]
[1733634180756,2.0909,238.92,238.85,6.40073707]
[1733634182359,2.091,238.91,238.87,2.0914]
[1733634183652,2.091,238.91,238.88,2.0913]
[1733634184655,8.49173707,238.91,238.85,6.40073707]
[1733634184852,2.0913,238.88,238.84,2.0916]
[1733634185056,1.86,238.93,238.82,1.86]
[1733634185057,6.40073707,238.87,238.82,1.86]
[1733634185253,6.40073707,238.87,238.81,1.86]
[1733634185457,6.40073707,238.87,238.8,8.26073707]
[1733634185854,2.0915,238.86,238.82,2.0917]
[1733634188358,6.40073707,238.88,238.82,2.0917]
[1733634188664,2.0915,238.85,238.82,2.0917]
[1733634191764,2.0915,238.85,238.81,8.49263707]
[1733634193965,2.0915,238.85,238.82,2.0918]
[1733634194367,2.0915,238.85,238.81,6.40073707]
[1733634197166,2.0915,238.85,238.81,8.49263707]
[1733634200567,8.49203707,238.88,238.82,2.0918]
[1733634202269,2.0913,238.88,238.82,2.0918]
[1733634202571,8.49203707,238.88,238.82,2.0918]
[1733634203974,8.49203707,238.88,238.83,2.0917]
[1733634206465,2.0905,238.98,238.91,2.091]
[1733634206670,7.31039696,238.97,238.9,6.40073707]
[1733634206871,7.31039696,238.96,238.9,6.40073707]
[1733634207170,1.84,238.98,238.9,6.40073707]
[1733634207471,7.31030052,238.97,238.9,6.40073707]
[1733634207678,2.0905,238.97,238.92,2.0909]
[1733634208578,1.84,238.98,238.93,2.0908]
[1733634209376,1.84,238.98,238.92,2.0909]
[1733634209377,2.0905,238.97,238.92,2.0909]
[1733634210672,8.49123707,238.97,238.92,2.0909]
[1733634210869,6.40073707,238.97,238.9,6.40073707]
[1733634211174,1.84,238.98,238.86,6.40073707]
[1733634211175,6.40073707,238.93,238.86,6.40073707]
[1733634212178,2.091,238.92,238.88,2.0913]
[1733634215483,2.0908,238.94,238.88,6.40073707]
[1733634215689,6.40073707,238.96,238.9,6.40073707]
[1733634216282,6.40073707,238.96,238.92,2.0909]
[1733634216482,2.0906,238.97,238.9,6.40073707]
[1733634217275,2.0903,238.99,238.92,6.40073707]
[1733634217581,6.40073707,238.98,238.92,6.40073707]
[1733634218584,6.40073707,238.96,238.92,2.0909]
[1733634218783,6.40073707,238.96,238.88,6.40073707]
[1733634219086,1.84,238.96,238.85,10.43483707]
[1733634219285,6.40073707,238.93,238.85,10.43483707]
[1733634220084,6.40073707,238.91,238.84,1.84]
[1733634220386,1.84,238.96,238.84,1.84]
[1733634220594,1.84,238.96,238.78,3.8207]
[1733634220595,6.40073707,238.89,238.78,3.8207]
[1733634220886,6.40073707,238.89,238.81,6.40073707]
[1733634221392,2.0913,238.88,238.83,2.0917]
[1733634223291,6.40073707,238.87,238.81,6.40073707]
[1733634224685,2.0915,238.86,238.82,2.0918]
[1733634225991,2.0913,238.88,238.83,2.0917]
[1733634226390,2.0913,238.88,238.83,8.49243707]
[1733634227495,2.0913,238.88,238.84,2.0916]
[1733634228994,2.0914,238.87,238.83,8.49243707]
[1733634229387,1.84,238.91,238.83,6.40073707]
[1733634229592,2.0913,238.88,238.83,8.49233707]
[1733634229988,2.0913,238.88,238.83,6.40073707]
[1733634230495,6.40073707,238.9,238.78,5.6607]
[1733634230496,2.0906,238.96,238.85,6.40073707]
[1733634230692,13.70836489,238.95,238.87,6.40073707]
[1733634230892,1.84,238.94,238.87,6.40073707]
[1733634231606,2.0909,238.93,238.89,2.0912]
[1733634231905,2.0909,238.93,238.89,8.49193707]
[1733634232397,2.0907,238.95,238.89,6.40073707]
[1733634232597,2.0907,238.95,238.91,6.40073707]
[1733634233703,2.0907,238.95,238.92,2.0909]
[1733634234603,2.0905,238.97,238.93,8.49153707]
[1733634235201,6.40073707,238.99,238.93,6.40073707]
[1733634235505,2.0904,238.98,238.94,2.0907]
[1733634235807,1.84,239.0,238.94,2.0907]
[1733634236006,2.0903,238.99,238.94,2.0907]
[1733634236699,2.0903,238.99,238.93,6.40073707]
[1733634237007,2.0903,238.99,238.95,2.0907]
[1733634238401,1.84,239.0,238.93,6.40073707]
[1733634238605,1.84,239.02,238.96,2.0905]
[1733634239209,2.0901,239.02,238.97,6.40073707]
[1733634240204,2.0901,239.02,238.97,8.49113707]
[1733634241706,2.0902,239.01,238.97,8.49113707]
[1733634242998,2.0902,239.01,238.99,6.40073707]
[1733634242999,0.0015,239.01,238.99,6.40073707]
[1733634243201,6.40073707,239.09,238.99,6.40073707]
[1733634243507,6.40073707,239.07,239.0,6.40073707]
[1733634243808,2.0899,239.04,238.99,2.0902]
[1733634246808,2.09,239.03,238.99,2.0902]
[1733634247309,2.09,239.03,238.99,8.49093707]
[1733634247512,2.09,239.03,238.99,2.0902]
[1733634249311,2.09,239.03,239.0,2.0902]
[1733634250709,2.0898,239.05,239.01,2.0901]
[1733634250913,8.24073707,239.08,239.01,2.0901]
[1733634251214,8.24073707,239.08,239.04,2.0899]
[1733634251215,2.0896,239.08,239.04,2.0899]
[1733634252412,2.0894,239.1,239.06,6.40073707]
[1733634253214,2.0894,239.1,239.03,1.84]
[1733634253215,2.0891,239.13,239.08,6.40073707]
[1733634253616,2.0892,239.12,239.07,6.40073707]
[1733634254006,2.0892,239.12,239.03,1.84]
[1733634254007,6.40073707,239.13,239.03,1.84]
[1733634254210,2.0895,239.09,239.05,2.0898]
[1733634255812,2.0896,239.07,239.02,2.09]
[1733634256016,6.40073707,239.09,239.02,2.09]
[1733634257618,2.0897,239.06,239.02,2.09]
[1733634259118,2.0896,239.07,239.03,8.49073707]
[1733634262618,2.0896,239.07,239.0,1.3332]
[1733634262619,6.40073707,239.08,239.0,1.3332]
[1733634262923,6.40073707,239.08,238.99,10.89223707]
[1733634263319,6.40073707,239.08,239.01,2.0901]
[1733634263320,2.0898,239.05,239.01,2.0901]
[1733634263920,2.0899,239.04,239.01,2.0901]
[1733634266325,2.0898,239.05,239.01,8.49083707]
[1733634269019,2.0898,239.05,239.01,2.0901]
[1733634269422,2.0898,239.05,239.01,8.49083707]
[1733634270717,2.0898,239.05,239.01,6.40073707]
[1733634270918,2.0898,239.05,239.02,2.09]
[1733634272229,2.0897,239.06,239.02,2.09]
[1733634273230,3.9297,239.07,239.03,2.0899]
[1733634273428,1.84,239.07,239.03,2.0899]
[1733634274129,1.84,239.07,239.01,6.40073707]
[1733634274432,1.84,239.07,238.99,2.6515]
[1733634274433,1.84,239.07,239.05,2.0898]
[1733634275729,6.40073707,239.15,239.09,2.0894]
[1733634275931,1.84,239.14,239.08,6.40073707]
[1733634276226,6.40073707,239.15,239.02,1.84]
[1733634276227,1.84,239.15,239.1,6.40073707]
[1733634276823,3.929,239.15,239.11,2.0892]
[1733634277423,1.84,239.15,239.11,2.0892]
[1733634277629,2.089,239.14,239.1,2.0893]
[1733634280134,2.089,239.14,239.08,6.40073707]
[1733634280430,8.24073707,239.15,239.11,2.0893]
[1733634280431,1.84,239.15,239.11,2.0893]
[1733634280829,8.24073707,239.15,239.11,2.0893]
[1733634281334,6.40073707,239.15,239.11,2.0893]
[1733634281838,2.089,239.14,239.11,2.0893]
[1733634283630,2.089,239.14,239.1,2.0893]
[1733634283834,6.40073707,239.13,239.06,6.40073707]
[1733634284330,2.089,239.14,239.08,6.40073707]
[1733634284537,6.40073707,239.15,239.08,6.40073707]
[1733634285331,2.7119,239.23,239.1,6.40073707]
[1733634285332,6.40073707,239.17,239.1,6.40073707]
[1733634285533,8.24073707,239.17,239.1,6.40073707]
[1733634285832,10.32953707,239.17,239.13,2.0891]
[1733634287536,2.0888,239.17,239.13,2.0891]
[1733634287732,2.0887,239.18,239.12,6.40073707]
[1733634288436,1.84,239.22,239.14,6.40073707]
[1733634288831,2.0885,239.2,239.16,2.0888]
[1733634289239,1.84,239.22,239.14,6.40073707]
[1733634290636,2.0884,239.21,239.17,2.0887]
[1733634291835,2.5417,239.3,239.16,6.40073707]
[1733634292037,2.5417,239.3,239.18,6.40073707]
[1733634292038,9.13191598,239.29,239.18,6.40073707]
[1733634292242,9.13191598,239.28,239.18,6.40073707]
[1733634292443,6.40073707,239.25,239.18,6.40073707]
[1733634292842,2.0882,239.23,239.2,2.0885]
[1733634293841,2.0879,239.27,239.2,6.40073707]
[1733634294044,4.1738,239.39,239.18,1.84]
[1733634294045,6.40073707,239.26,239.18,1.84]
[1733634294346,6.40073707,239.26,239.18,8.24073707]
[1733634294546,2.0882,239.24,239.19,2.0885]
[1733634294846,6.40073707,239.24,239.18,1.84]
[1733634295154,6.40073707,239.24,239.16,6.40073707]
[1733634295741,2.0884,239.22,239.18,2.0886]
[1733634299751,2.0884,239.22,239.14,6.40073707]
[1733634299752,6.40073707,239.22,239.14,6.40073707]
[1733634299952,6.40073707,239.2,239.14,6.40073707]
[1733634300352,2.0888,239.17,239.13,2.089]
[1733634300547,2.0888,239.17,239.12,57.01130195]
[1733634300548,6.40073707,239.2,239.12,57.01130195]
[1733634300846,6.40073707,239.18,239.12,50.61056488]
[1733634301047,8.24073707,239.18,239.1,6.40073707]
[1733634301748,8.24073707,239.18,239.11,2.0892]
[1733634302554,2.089,239.14,239.11,2.0892]
[1733634303150,6.40073707,239.16,239.08,1.2664]
[1733634303349,6.40073707,239.14,239.08,1.2664]
[1733634304655,2.0894,239.1,239.06,2.0896]
[1733634304851,2.0894,239.1,239.06,8.49033707]
[1733634305447,6.40073707,239.12,239.04,6.40073707]
[1733634305653,2.0895,239.09,239.05,2.0898]
[1733634307857,6.40073707,239.1,239.02,1.3466]
[1733634308753,2.0896,239.07,239.03,8.49063707]
[1733634308953,6.40073707,239.1,239.03,8.49063707]
[1733634309351,2.0896,239.07,239.03,8.49063707]
[1733634309551,6.40073707,239.08,239.01,8.49083707]
[1733634309756,6.40073707,239.08,239.0,6.40073707]
[1733634309757,8.24073707,239.08,239.0,6.40073707]
[1733634309950,2.0898,239.05,239.0,6.40073707]
[1733634310956,2.0899,239.04,238.95,1.84]
[1733634311156,2.0899,239.04,238.99,6.40073707]
[1733634312066,2.0899,239.04,238.99,8.49103707]
[1733634312364,2.09,239.03,238.97,6.40073707]
[1733634313260,2.09,239.03,238.98,2.0904]
[1733634316963,6.40073707,239.04,238.98,2.0904]
[1733634317164,2.0901,239.02,238.98,2.0904]
[1733634318961,2.0901,239.02,238.98,8.49113707]
[1733634321868,2.09,239.04,238.99,2.0903]
[1733634322758,6.40073707,239.05,238.99,2.0903]
[1733634322959,2.09,239.03,238.99,2.0903]
[1733634324365,6.40073707,239.01,238.95,1.3068]
[1733634324969,2.0903,238.99,238.96,2.0906]
[1733634325169,2.0903,238.99,238.95,7.70753707]
[1733634325364,6.40073707,239.01,238.94,1.3447]
[1733634325568,2.0905,238.97,238.94,1.3447]
[1733634325765,2.0905,238.97,238.93,2.0908]
[1733634326270,2.0907,238.96,238.91,2.0909]
[1733634326467,6.40073707,238.95,238.88,1.3265]
[1733634326870,2.0909,238.92,238.88,3.4177]
[1733634327769,6.40073707,238.93,238.86,8.49213707]
[1733634328166,2.0913,238.88,238.85,1.84]
[1733634328366,2.0913,238.88,238.83,2.0917]
[1733634328568,2.0913,238.88,238.83,8.49243707]
[1733634329165,2.0913,238.88,238.84,2.0916]
[1733634330570,8.24073707,238.91,238.84,2.0916]
[1733634330773,2.0912,238.89,238.84,2.0916]
[1733634331567,2.0901,239.02,238.88,2.0913]
[1733634331772,2.0901,239.02,238.87,6.40073707]
[1733634331773,6.40073707,238.95,238.87,6.40073707]
[1733634332078,8.24073707,238.95,238.87,6.40073707]
[1733634333772,2.0908,238.93,238.89,2.0912]
[1733634334570,8.49153707,238.93,238.88,2.0913]
[1733634334771,6.40073707,238.93,238.88,2.0913]
[1733634335069,2.0909,238.92,238.88,2.0913]
[1733634335467,2.0909,238.92,238.81,1.84]
[1733634335468,6.40073707,238.93,238.85,6.40073707]
[1733634335673,2.0911,238.91,238.86,2.0914]
[1733634337779,6.40073707,238.92,238.86,2.0914]
[1733634337975,2.0911,238.9,238.86,2.0914]
[1733634343988,2.6465,239.0,238.85,6.40073707]
[1733634344182,1.3872,239.01,238.89,6.40073707]
[1733634344183,6.40073707,238.97,238.89,6.40073707]
[1733634344385,8.24073707,238.97,238.91,6.40073707]
[1733634344593,6.40073707,238.97,238.91,6.40073707]
[1733634344892,3.9304,238.98,238.93,2.0907]
[1733634345094,1.84,238.98,238.93,2.0907]
[1733634345296,2.0905,238.97,238.93,2.0907]
[1733634345592,2.674,239.07,238.95,6.40073707]
[1733634345890,2.0901,239.02,238.95,6.40073707]
[1733634346287,2.0901,239.01,238.97,2.0905]
[1733634347490,2.0901,239.02,238.98,2.0904]
[1733634347883,2.09,239.04,238.97,6.40073707]
[1733634348084,8.49073707,239.04,238.99,2.0902]
[1733634348288,1.84,239.05,238.97,6.40073707]
[1733634348494,1.84,239.05,238.99,6.40073707]
[1733634349586,1.84,239.05,239.01,2.0901]
[1733634350586,1.84,239.05,238.99,6.40073707]
[1733634351391,1.84,239.05,239.01,2.0901]
[1733634351691,6.40073707,239.04,238.98,1.2881]
[1733634351988,1.84,239.05,238.98,1.2881]
[1733634351989,6.40073707,239.02,238.98,1.2881]
[1733634352589,6.40073707,239.02,238.95,6.40073707]
[1733634352786,6.40073707,239.02,238.97,2.0905]
[1733634352787,8.49083707,239.02,238.97,2.0905]
[1733634355192,2.0901,239.02,238.97,2.0905]
[1733634355394,6.40073707,239.01,238.97,2.0905]
[1733634359199,6.40073707,239.01,238.95,6.40073707]
[1733634359399,2.0902,239.0,238.96,2.0906]
[1733634360595,2.0905,238.97,238.92,2.0908]
[1733634360796,2.0905,238.97,238.92,8.49153707]
[1733634361094,6.40073707,238.93,238.82,6.40073707]
[1733634361299,6.40073707,238.91,238.82,6.40073707]
[1733634361500,8.24073707,238.91,238.84,6.40073707]
[1733634361902,2.0911,238.9,238.86,2.0914]
[1733634362295,8.24073707,238.91,238.77,1.3373]
[1733634362499,2.0914,238.87,238.82,2.0918]
[1733634362700,6.40073707,238.89,238.81,6.40073707]
[1733634363108,2.0913,238.88,238.84,2.0916]
[1733634363800,2.0912,238.9,238.84,2.0916]
[1733634364004,2.0912,238.9,238.85,2.0915]
[1733634364300,1.84,238.91,238.85,6.40073707]
[1733634364699,6.40073707,238.86,238.71,1.2665]
[1733634364903,8.49243707,238.84,238.77,6.40073707]
[1733634365102,10.33243707,238.84,238.77,6.40073707]
[1733634366400,10.33243707,238.84,238.79,2.0921]
[1733634366999,1.84,238.84,238.79,6.40073707]
[1733634367605,1.84,238.86,238.81,6.40073707]
[1733634367807,1.84,238.86,238.79,6.40073707]
[1733634368006,8.24073707,238.86,238.79,6.40073707]
[1733634368203,6.40073707,238.84,238.8,2.092]
[1733634370003,6.40073707,238.82,238.78,2.0921]
[1733634370208,6.40073707,238.82,238.75,6.40073707]
[1733634370510,6.40073707,238.84,238.8,2.092]
[1733634371103,8.24073707,238.86,238.82,2.0918]
[1733634373299,6.40073707,238.84,238.76,2.0923]
[1733634373504,6.40073707,238.8,238.72,6.40073707]
[1733634373700,6.40073707,238.82,238.74,6.40073707]
[1733634373900,2.0916,238.85,238.8,2.092]
[1733634374108,6.40073707,238.84,238.76,6.40073707]
[1733634374407,1.84,238.85,238.77,2.0922]
[1733634374408,6.40073707,238.82,238.77,2.0922]
[1733634374608,6.40073707,238.82,238.74,8.97103707]
[1733634374803,6.40073707,238.8,238.74,8.97103707]
[1733634375200,6.40073707,238.8,238.73,1.84]
[1733634375805,8.49273707,238.8,238.74,2.0924]
[1733634376010,6.40073707,238.78,238.74,2.0924]
[1733634376209,6.40073707,238.78,238.73,1.84]
[1733634377408,6.40073707,238.74,238.5,5.80979793]
[1733634377608,1.3393,238.97,238.63,6.40073707]
[1733634377609,6.40073707,238.7,238.63,6.40073707]
[1733634378808,1.84,238.73,238.65,6.40073707]
[1733634379012,1.84,238.73,238.67,6.40073707]
[1733634379210,1.3808,238.83,238.67,6.40073707]
[1733634379211,1.84,238.76,238.67,6.40073707]
[1733634379515,6.40073707,238.75,238.67,6.40073707]
[1733634379703,1.84,238.78,238.69,6.40073707]
[1733634379907,6.40073707,238.77,238.69,6.40073707]
[1733634381111,6.40073707,238.77,238.75,2.0924]
[1733634383911,1.84,238.79,238.73,2.0926]
[1733634384117,1.2694,238.84,238.73,6.40073707]
[1733634384319,6.40073707,238.82,238.75,6.40073707]
[1733634385412,6.40073707,238.8,238.75,2.0924]
[1733634385617,6.40073707,238.8,238.72,8.24073707]
[1733634386712,6.40073707,238.8,238.79,2.0921]
[1733634388716,1.84,238.86,238.83,2.0916]
[1733634388917,6.40073707,238.85,238.83,2.0916]
[1733634389715,6.40073707,238.85,238.78,2.0921]
[1733634389915,6.40073707,238.85,238.76,6.40073707]
[1733634390323,6.40073707,238.85,238.83,2.0917]
[1733634391223,1.84,238.86,238.84,2.0916]
[1733634391423,8.24073707,238.86,238.84,2.0916]
[1733634394341,2.091,238.91,238.85,2.0915]
[1733634394536,8.24073707,238.9,238.82,6.40073707]
[1733634395544,8.24073707,238.9,238.87,2.0913]
[1733634396142,6.40073707,238.9,238.88,2.0913]
[1733634396635,6.40073707,238.9,238.87,2.0913]
[1733634398642,6.40073707,238.88,238.82,6.40073707]
[1733634398853,6.40073707,238.86,238.78,9.03823707]
[1733634399444,6.40073707,238.84,238.83,2.0916]
[1733634399650,6.40073707,238.84,238.78,1.3216]
[1733634399852,6.40073707,238.84,238.76,8.24073707]
[1733634401647,6.40073707,238.84,238.81,2.0918]
[1733634402428,8.24073707,238.85,238.81,2.0918]
[1733634402733,8.24073707,238.87,238.78,6.40073707]
[1733634403232,6.40073707,238.85,238.83,2.0917]
[1733634407928,6.40073707,238.85,238.84,2.0916]
[1733634408437,8.24073707,238.87,238.84,2.0916]
[1733634408837,8.24073707,238.87,238.78,6.40073707]
[1733634409032,8.24073707,238.87,238.85,2.0915]
[1733634412084,10.33213707,238.87,238.84,2.0916]
[1733634418568,3.9314,238.87,238.84,2.0916]
[1733634418776,8.49193707,238.89,238.85,2.0915]
[1733634420159,6.40073707,238.89,238.86,2.0914]
[1733634420957,6.40073707,238.89,238.8,6.40073707]
[1733634421159,2.0913,238.88,238.8,6.40073707]
[1733634421355,6.40073707,238.87,238.8,6.40073707]
[1733634422651,2.0913,238.88,238.85,2.0915]
[1733634424444,6.40073707,238.89,238.85,2.0915]
[1733634424645,1.84,238.98,238.89,2.0911]
[1733634424851,6.40073707,238.94,238.86,6.40073707]
[1733634425844,1.84,238.97,238.86,6.40073707]
[1733634426046,6.40073707,238.95,238.86,6.40073707]
[1733634426653,2.0908,238.94,238.9,2.0911]
[1733634429158,6.40073707,238.95,238.86,6.40073707]
[1733634429458,6.40073707,238.95,238.92,2.0909]
[1733634430557,8.24073707,238.98,238.9,6.40073707]
[1733634431463,6.40073707,238.98,238.9,6.40073707]
[1733634431666,8.49123707,238.98,238.95,2.0907]
[1733634432760,7.33428432,238.97,238.95,2.0907]
[1733634432961,8.49123707,238.98,238.95,2.0907]
[1733634433262,7.33437814,238.97,238.95,2.0907]
[1733634433464,6.40073707,238.98,238.95,2.0907]
[1733634435361,2.0899,239.04,238.98,2.0903]
[1733634435664,6.40073707,239.02,238.94,6.40073707]
[1733634435962,9.16966357,239.03,238.94,6.40073707]
[1733634435963,7.32966357,239.01,238.94,6.40073707]
[1733634436157,7.32966357,239.02,238.94,6.40073707]
[1733634436363,6.40073707,239.03,238.94,6.40073707]
[1733634436859,8.49073707,239.03,238.98,2.0903]
[1733634437178,2.09,239.03,238.96,6.40073707]
[1733634437392,8.49073707,239.03,238.96,6.40073707]
[1733634438091,8.49073707,239.03,238.98,2.0904]
[1733634438376,6.40073707,239.01,238.98,2.0904]
[1733634440358,1.84,239.05,239.02,2.09]
[1733634441565,8.49063707,239.04,238.98,2.0903]
[1733634441768,6.40073707,239.01,238.98,2.0903]
[1733634443266,8.49093707,239.01,238.93,1.84]
[1733634443669,8.49093707,239.01,238.96,2.0905]
[1733634444167,6.40073707,238.99,238.96,2.0905]
[1733634444668,1.84,239.05,238.92,1.297]
[1733634444669,6.40073707,238.97,238.92,1.297]
[1733634444866,6.40073707,238.97,238.94,2.0907]
[1733634445065,6.40073707,238.97,238.91,1.3922]
[1733634445266,6.40073707,238.95,238.9,1.84]
[1733634446364,6.40073707,238.95,238.85,2.0915]
[1733634446567,6.40073707,238.95,238.81,1.2647]
[1733634446568,6.40073707,238.95,238.87,6.40073707]
[1733634447673,8.49143707,238.95,238.9,2.0911]
[1733634447972,6.40073707,238.93,238.85,1.84]
[1733634448172,8.49163707,238.93,238.85,1.84]
[1733634448572,6.40073707,238.91,238.84,6.40073707]
[1733634449074,6.40073707,238.91,238.86,2.0914]
[1733634449374,6.40073707,238.91,238.84,6.40073707]
[1733634449671,6.40073707,238.91,238.87,2.0914]
[1733634450371,6.40073707,238.91,238.82,8.24073707]
[1733634450674,8.49213707,238.89,238.82,8.24073707]
[1733634450865,6.40073707,238.87,238.81,1.2647]
[1733634451463,6.40073707,238.87,238.8,6.40073707]
[1733634451670,6.40073707,238.85,238.78,8.24073707]
[1733634452065,6.40073707,238.83,238.72,3.9359]
[1733634452373,6.40073707,238.83,238.75,8.24073707]
[1733634452577,6.40073707,238.83,238.75,6.40073707]
[1733634452869,6.40073707,238.83,238.77,2.0924]
[1733634452870,6.40073707,238.81,238.77,2.0924]
[1733634453576,6.40073707,238.79,238.72,2.6194]
[1733634453779,6.40073707,238.79,238.72,1.3166]
[1733634454577,6.40073707,238.79,238.74,2.0926]
[1733634454578,8.49303707,238.79,238.74,2.0926]
[1733634454973,1.84,238.83,238.71,1.84]
[1733634454974,6.40073707,238.77,238.71,1.84]
[1733634455872,6.40073707,238.77,238.68,6.40073707]
[1733634456271,6.40073707,238.75,238.68,6.40073707]
[1733634456570,6.40073707,238.75,238.7,2.093]
[1733634459966,6.40073707,238.75,238.71,2.0929]
[1733634460167,2.0922,238.8,238.72,6.40073707]
[1733634460368,1.84,238.8,238.74,6.40073707]
[1733634460567,1.84,238.8,238.76,6.40073707]
[1733634460774,8.24073707,238.83,238.79,2.0923]
[1733634461173,8.24073707,238.83,238.76,6.40073707]
[1733634461573,6.40073707,238.81,238.74,6.40073707]
[1733634461773,6.40073707,238.81,238.77,2.0924]
[1733634462174,6.40073707,238.79,238.77,2.0924]
[1733634462876,2.0924,238.78,238.73,2.0927]
[1733634463082,6.40073707,238.76,238.69,8.24073707]
[1733634464274,6.40073707,238.76,238.69,1.84]
[1733634464584,6.40073707,238.74,238.69,1.84]
[1733634465681,6.40073707,238.74,238.72,2.0928]
[1733634466284,6.40073707,238.76,238.73,2.0928]
[1733634467275,1.84,238.77,238.73,2.0928]
[1733634467481,8.24073707,238.77,238.73,2.0928]
[1733634468582,6.40073707,238.76,238.73,2.0928]
[1733634470782,6.40073707,238.74,238.66,1.3352]
[1733634471086,6.40073707,238.74,238.66,7.73593707]
[1733634471586,6.40073707,238.72,238.66,1.3352]
[1733634471885,6.40073707,238.72,238.64,8.24073707]
[1733634472685,6.40073707,238.72,238.68,2.0932]
[1733634473381,2.0927,238.75,238.68,2.0932]
[1733634473586,1.84,238.77,238.68,2.0932]
[1733634473587,6.40073707,238.71,238.68,2.0932]
[1733634473784,6.40073707,238.71,238.55,3.9156]
[1733634473988,2.0931,238.7,238.62,6.40073707]
[1733634474483,2.0931,238.7,238.66,2.0934]
[1733634478082,8.49373707,238.71,238.68,2.0932]
[1733634478289,6.40073707,238.71,238.68,2.0932]
[1733634480993,3.9329,238.72,238.64,6.40073707]
[1733634481291,6.40073707,238.7,238.64,6.40073707]
[1733634481495,6.40073707,238.7,238.6,1.84]
[1733634481691,6.40073707,238.7,238.63,6.40073707]
[1733634481890,6.40073707,238.7,238.66,2.0933]
[1733634482294,6.40073707,238.68,238.55,3.9156]
[1733634482491,1.84,238.72,238.63,2.0936]
[1733634482492,6.40073707,238.66,238.63,2.0936]
[1733634482995,6.40073707,238.66,238.59,6.40073707]
[1733634483196,6.40073707,238.64,238.61,2.0938]
[1733634483791,6.40073707,238.64,238.62,2.0937]
[1733634484193,8.49413707,238.66,238.59,6.40073707]
[1733634484393,8.49413707,238.66,238.61,2.0938]
[1733634484690,8.49413707,238.66,238.59,6.40073707]
[1733634484691,6.40073707,238.66,238.59,6.40073707]
[1733634485395,6.40073707,238.6,238.47,1.84]
[1733634485599,6.40073707,238.6,238.53,6.40073707]
[1733634485793,8.24073707,238.62,238.57,2.0942]
[1733634485996,10.33453707,238.62,238.57,2.0942]
[1733634488799,3.9338,238.62,238.57,2.0942]
[1733634488999,10.33453707,238.62,238.58,2.0941]
[1733634490292,6.40073707,238.6,238.52,6.40073707]
[1733634490501,6.40073707,238.58,238.5,6.40073707]
[1733634490798,1.84,238.57,238.5,6.40073707]
[1733634490996,1.84,238.57,238.54,2.0944]
[1733634491401,1.84,238.57,238.49,2.7491]
[1733634491598,1.84,238.57,238.53,2.0945]
[1733634492603,3.9342,238.57,238.53,2.0945]
[1733634492905,6.40073707,238.56,238.5,2.0948]
[1733634493201,6.40073707,238.54,238.5,2.0948]
[1733634494301,6.40073707,238.54,238.51,2.0947]
[1733634496505,6.40073707,238.54,238.5,2.0948]
[1733634497203,6.40073707,238.52,238.5,2.0948]
[1733634498504,2.0944,238.55,238.5,2.0948]
[1733634498704,6.40073707,238.52,238.5,2.0948]
[1733634502702,6.40073707,238.52,238.45,8.24073707]
[1733634502909,6.40073707,238.52,238.51,2.0947]
[1733634503105,6.40073707,238.52,238.45,1.84]
[1733634503304,6.40073707,238.52,238.5,2.0948]
[1733634503508,1.84,238.57,238.48,6.40073707]
[1733634503709,6.40073707,238.54,238.48,6.40073707]
[1733634503913,6.40073707,238.54,238.51,2.0946]
[1733634505213,6.40073707,238.54,238.48,6.40073707]
[1733634505515,6.40073707,238.54,238.52,2.0946]
[1733634511613,2.0943,238.56,238.52,2.0946]
[1733634511819,6.40073707,238.54,238.52,2.0946]
[1733634512822,6.40073707,238.54,238.5,2.0948]
[1733634513019,6.40073707,238.52,238.43,1.2811]
[1733634513219,6.40073707,238.5,238.43,1.2811]
[1733634514022,1.84,238.51,238.43,1.2811]
[1733634514225,6.40073707,238.5,238.47,2.095]
[1733634516327,6.40073707,238.48,238.45,2.0952]
[1733634516630,1.84,238.51,238.4,53.91773128]
[1733634516631,6.40073707,238.46,238.4,53.91773128]
[1733634517426,6.40073707,238.46,238.4,52.55843128]
[1733634518023,6.40073707,238.46,238.43,2.0952]